[Event "*** Titled Tuesday Blitz"]
[Site "Chess.com"]
[Date "2020.10.27"]
[Round "4"]
[White "Fischerev7"]
[Black "TheCairnTerrier"]
[Result "1-0"]
[WhiteElo "2414"]
[BlackElo "2184"]
[TimeControl "180+1"]
[EndTime "10:37:09 PDT"]
[Termination "Fischerev7 won by resignation"]

1. e4 {[%clk 0:03:00.9]} 1... c5 {[%clk 0:02:59.6]} 2. Nf3 {[%clk 0:02:59.5]}
2... e6 {[%clk 0:02:59.7]} 3. d4 {[%clk 0:02:58.6]} 3... cxd4 {[%clk 0:03:00.6]}
4. Nxd4 {[%clk 0:02:59.3]} 4... Nf6 {[%clk 0:03:00.8]} 5. Nc3 {[%clk 0:02:58.4]}
5... d6 {[%clk 0:03:01]} 6. Bg5 {[%clk 0:02:57.8]} 6... Be7 {[%clk 0:03:00.6]}
7. Qd2 {[%clk 0:02:58.2]} 7... h6 {[%clk 0:03:00.4]} 8. Bh4 {[%clk 0:02:39.1]}
8... Nc6 {[%clk 0:02:58.6]} 9. Ndb5 {[%clk 0:02:30.4]} 9... a6 {[%clk
0:02:56.4]} 10. Bxf6 {[%clk 0:02:29.8]} 10... gxf6 {[%clk 0:02:55]} 11. Nd4
{[%clk 0:02:26.9]} 11... Bd7 {[%clk 0:02:49.1]} 12. f4 {[%clk 0:02:25.9]} 12...
b5 {[%clk 0:02:47.6]} 13. Nxc6 {[%clk 0:02:17.3]} 13... Bxc6 {[%clk 0:02:46.8]}
14. a3 {[%clk 0:02:16.5]} 14... Qb6 {[%clk 0:02:45.6]} 15. f5 {[%clk 0:02:12.9]}
15... Rg8 {[%clk 0:02:26.7]} 16. fxe6 {[%clk 0:02:11.2]} 16... fxe6 {[%clk
0:02:26.1]} 17. Be2 {[%clk 0:02:11.7]} 17... Kd7 {[%clk 0:02:15.3]} 18. Bf3
{[%clk 0:02:05.2]} 18... Rg5 {[%clk 0:02:14]} 19. h4 {[%clk 0:02:02.4]} 19...
Rg3 {[%clk 0:02:11.9]} 20. Qxh6 {[%clk 0:01:52.6]} 20... Rag8 {[%clk 0:02:10.3]}
21. Qd2 {[%clk 0:01:51.1]} 21... Bf8 {[%clk 0:01:45.1]} 22. h5 {[%clk
0:01:48.3]} 22... R3g5 {[%clk 0:01:34.4]} 23. h6 {[%clk 0:01:46.5]} 23... Rh8
{[%clk 0:01:33.6]} 24. O-O-O {[%clk 0:01:42.2]} 24... Bxh6 {[%clk 0:01:32]} 25.
Qxd6+ {[%clk 0:01:40.1]} 25... Kc8 {[%clk 0:01:27.5]} 26. Qxe6+ {[%clk
0:01:33.8]} 26... Kb7 {[%clk 0:01:27.4]} 27. Kb1 {[%clk 0:01:27.8]} 27... b4
{[%clk 0:01:18.5]} 28. axb4 {[%clk 0:01:24.7]} 28... Qxb4 {[%clk 0:01:17.2]} 29.
Nd5 {[%clk 0:01:24.9]} 29... Bxd5 {[%clk 0:00:57.2]} 30. exd5 {[%clk 0:01:21.7]}
30... Rb8 {[%clk 0:00:56.1]} 31. Rxh6 {[%clk 0:01:11.8]} 31... Ka7 {[%clk
0:00:53.1]} 32. Rh7+ {[%clk 0:01:11.1]} 32... Rb7 {[%clk 0:00:42.4]} 33. Rxb7+
{[%clk 0:01:10.5]} 33... Kxb7 {[%clk 0:00:43.3]} 34. d6+ {[%clk 0:01:09.7]} 1-0

[Event "*** Titled Tuesday Blitz"]
[Site "Chess.com"]
[Date "2020.10.27"]
[Round "4"]
[White "olksuna"]
[Black "Brave_spirit12"]
[Result "0-1"]
[WhiteElo "2618"]
[BlackElo "2490"]
[TimeControl "180+1"]
[EndTime "10:37:10 PDT"]
[Termination "Brave_spirit12 won on time"]

1. e4 {[%clk 0:03:00.9]} 1... e6 {[%clk 0:02:59.4]} 2. b3 {[%clk 0:03:00.2]}
2... c5 {[%clk 0:02:56]} 3. Bb2 {[%clk 0:02:58]} 3... Nc6 {[%clk 0:02:55.6]} 4.
Nf3 {[%clk 0:02:53.2]} 4... d5 {[%clk 0:02:55.2]} 5. exd5 {[%clk 0:02:51.6]}
5... exd5 {[%clk 0:02:56.1]} 6. Bb5 {[%clk 0:02:52]} 6... Nf6 {[%clk 0:02:54.2]}
7. Qe2+ {[%clk 0:02:50.5]} 7... Be7 {[%clk 0:02:54.2]} 8. Bxf6 {[%clk
0:02:47.3]} 8... gxf6 {[%clk 0:02:53.6]} 9. O-O {[%clk 0:02:47.4]} 9... Be6
{[%clk 0:02:52.4]} 10. d4 {[%clk 0:02:45.8]} 10... Rg8 {[%clk 0:02:47.5]} 11.
Re1 {[%clk 0:02:42.6]} 11... Qd7 {[%clk 0:02:42.2]} 12. Nc3 {[%clk 0:02:32.5]}
12... O-O-O {[%clk 0:02:33.9]} 13. Rad1 {[%clk 0:02:19.7]} 13... Qc7 {[%clk
0:02:06.6]} 14. dxc5 {[%clk 0:01:56.8]} 14... Bxc5 {[%clk 0:02:07.5]} 15. Bxc6
{[%clk 0:01:41.5]} 15... Qxc6 {[%clk 0:02:01.7]} 16. Nb5 {[%clk 0:01:41.2]}
16... d4 {[%clk 0:01:44.8]} 17. g3 {[%clk 0:00:33.8]} 17... Bg4 {[%clk
0:01:37.3]} 18. Nbxd4 {[%clk 0:00:08.5]} 18... Bxd4 {[%clk 0:01:25]} 19. Nxd4
{[%clk 0:00:08.8]} 19... Rxd4 {[%clk 0:01:19.9]} 20. f3 {[%clk 0:00:01.9]} 20...
Bxf3 {[%clk 0:01:16.4]} 0-1

[Event "*** Titled Tuesday Blitz"]
[Site "Chess.com"]
[Date "2020.10.27"]
[Round "4"]
[White "smshk35"]
[Black "DinaBelenkaya"]
[Result "0-1"]
[WhiteElo "2472"]
[BlackElo "2346"]
[TimeControl "180+1"]
[EndTime "10:37:17 PDT"]
[Termination "DinaBelenkaya won by checkmate"]

1. e4 {[%clk 0:03:00.9]} 1... d5 {[%clk 0:03:00.1]} 2. exd5 {[%clk 0:03:00.6]}
2... Qxd5 {[%clk 0:03:01]} 3. Nc3 {[%clk 0:02:59.2]} 3... Qa5 {[%clk 0:03:00.6]}
4. Nf3 {[%clk 0:02:58.5]} 4... Nf6 {[%clk 0:02:55.2]} 5. d4 {[%clk 0:02:58.7]}
5... c6 {[%clk 0:02:54.9]} 6. Bc4 {[%clk 0:02:58.7]} 6... Bf5 {[%clk 0:02:54]}
7. Ne5 {[%clk 0:02:57]} 7... e6 {[%clk 0:02:51.1]} 8. g4 {[%clk 0:02:57.2]} 8...
Be4 {[%clk 0:02:50.8]} 9. f3 {[%clk 0:02:55.6]} 9... Bd5 {[%clk 0:02:50.6]} 10.
Bxd5 {[%clk 0:02:55.9]} 10... Nxd5 {[%clk 0:02:44.4]} 11. Bd2 {[%clk 0:02:56.1]}
11... Qb6 {[%clk 0:02:07.8]} 12. Nxd5 {[%clk 0:02:41.3]} 12... cxd5 {[%clk
0:02:05.2]} 13. Bc3 {[%clk 0:02:37.3]} 13... Nc6 {[%clk 0:02:04.5]} 14. Nxc6
{[%clk 0:02:37.4]} 14... bxc6 {[%clk 0:02:05.4]} 15. Qd2 {[%clk 0:02:34.4]}
15... h5 {[%clk 0:01:58.1]} 16. g5 {[%clk 0:02:32.6]} 16... Qa6 {[%clk
0:01:45.1]} 17. Qe2 {[%clk 0:02:30]} 17... Qxe2+ {[%clk 0:01:32.2]} 18. Kxe2
{[%clk 0:02:30.9]} 18... Bd6 {[%clk 0:01:31]} 19. a4 {[%clk 0:02:28.2]} 19...
Kd7 {[%clk 0:01:28.5]} 20. b4 {[%clk 0:02:28.3]} 20... a6 {[%clk 0:01:28.3]} 21.
h3 {[%clk 0:02:20.4]} 21... Rhb8 {[%clk 0:01:27.7]} 22. Rab1 {[%clk 0:02:20.4]}
22... Rb7 {[%clk 0:01:22.8]} 23. Rb3 {[%clk 0:02:19]} 23... Rab8 {[%clk
0:01:22.6]} 24. Rhb1 {[%clk 0:02:18.1]} 24... g6 {[%clk 0:01:04.5]} 25. Kf2
{[%clk 0:02:15.8]} 25... Bf4 {[%clk 0:01:04.4]} 26. h4 {[%clk 0:02:14.5]} 26...
Kc8 {[%clk 0:01:02.2]} 27. Be1 {[%clk 0:02:11.9]} 27... Kd7 {[%clk 0:00:57]} 28.
Kg2 {[%clk 0:02:12.1]} 28... e5 {[%clk 0:00:53.2]} 29. Bg3 {[%clk 0:01:58.2]}
29... Bxg3 {[%clk 0:00:50.8]} 30. Kxg3 {[%clk 0:01:59.1]} 30... exd4 {[%clk
0:00:51.3]} 31. Kf4 {[%clk 0:01:57.1]} 31... Kd6 {[%clk 0:00:42.7]} 32. R1b2
{[%clk 0:01:48]} 32... Ke6 {[%clk 0:00:38]} 33. Rb1 {[%clk 0:01:46.9]} 33... f6
{[%clk 0:00:35.5]} 34. Re1+ {[%clk 0:01:35.3]} 34... Kf7 {[%clk 0:00:35.6]} 35.
Reb1 {[%clk 0:01:34.3]} 35... fxg5+ {[%clk 0:00:34.8]} 36. Kxg5 {[%clk
0:01:32.7]} 36... Kg7 {[%clk 0:00:34.5]} 37. Re1 {[%clk 0:01:26.5]} 37... Rf8
{[%clk 0:00:34.4]} 38. Re5 {[%clk 0:01:25.9]} 38... Rbf7 {[%clk 0:00:30]} 39. b5
{[%clk 0:01:19.7]} 39... Rf5+ {[%clk 0:00:29.7]} 40. Rxf5 {[%clk 0:01:20.2]}
40... Rxf5# {[%clk 0:00:30.1]} 0-1

[Event "*** Titled Tuesday Blitz"]
[Site "Chess.com"]
[Date "2020.10.27"]
[Round "4"]
[White "redbaron8888"]
[Black "kai_nov"]
[Result "1-0"]
[WhiteElo "2495"]
[BlackElo "2304"]
[TimeControl "180+1"]
[EndTime "10:37:20 PDT"]
[Termination "redbaron8888 won on time"]

1. e4 {[%clk 0:02:52.7]} 1... c5 {[%clk 0:02:59.1]} 2. Nf3 {[%clk 0:02:52.6]}
2... Nc6 {[%clk 0:02:59]} 3. Bb5 {[%clk 0:02:51.2]} 3... e6 {[%clk 0:02:55.2]}
4. O-O {[%clk 0:02:49.5]} 4... Nge7 {[%clk 0:02:54.2]} 5. c3 {[%clk 0:02:48.8]}
5... a6 {[%clk 0:02:46]} 6. Ba4 {[%clk 0:02:48.4]} 6... b5 {[%clk 0:02:44.3]} 7.
Bc2 {[%clk 0:02:48.5]} 7... Bb7 {[%clk 0:02:39.2]} 8. Re1 {[%clk 0:02:45.7]}
8... Ng6 {[%clk 0:02:35.5]} 9. d4 {[%clk 0:02:44.4]} 9... cxd4 {[%clk
0:02:32.6]} 10. cxd4 {[%clk 0:02:45.3]} 10... Rc8 {[%clk 0:02:27.3]} 11. Nc3
{[%clk 0:02:38.5]} 11... Na5 {[%clk 0:02:11.4]} 12. a3 {[%clk 0:02:23.8]} 12...
Be7 {[%clk 0:02:04.2]} 13. d5 {[%clk 0:02:19.6]} 13... d6 {[%clk 0:01:47.9]} 14.
dxe6 {[%clk 0:02:14.9]} 14... fxe6 {[%clk 0:01:47.6]} 15. Nd4 {[%clk 0:02:15.1]}
15... Qd7 {[%clk 0:01:34.9]} 16. Qg4 {[%clk 0:02:11.3]} 16... e5 {[%clk
0:01:30.6]} 17. Nf5 {[%clk 0:02:09.5]} 17... Bf6 {[%clk 0:00:53.3]} 18. Rd1
{[%clk 0:02:01.7]} 18... Rc6 {[%clk 0:00:22.6]} 19. h4 {[%clk 0:01:48]} 19...
Nxh4 {[%clk 0:00:14.7]} 20. Bg5 {[%clk 0:01:47.1]} 20... Nxf5 {[%clk 0:00:12.7]}
21. exf5 {[%clk 0:01:48]} 21... O-O {[%clk 0:00:11.9]} 22. Bxf6 {[%clk
0:01:44.6]} 22... Rxf6 {[%clk 0:00:11.7]} 23. Nd5 {[%clk 0:01:40.9]} 23... Rf7
{[%clk 0:00:11.2]} 24. Be4 {[%clk 0:01:40]} 24... Rc4 {[%clk 0:00:11]} 25. Rac1
{[%clk 0:01:36.7]} 25... Nb3 {[%clk 0:00:09.7]} 26. Rxc4 {[%clk 0:01:32.9]}
26... bxc4 {[%clk 0:00:09.9]} 27. Qe2 {[%clk 0:01:31.8]} 27... Nc5 {[%clk
0:00:06.4]} 28. Qxc4 {[%clk 0:01:31]} 28... Nxe4 {[%clk 0:00:06]} 29. Qxe4
{[%clk 0:01:31.9]} 29... Qb5 {[%clk 0:00:02.3]} 30. b4 {[%clk 0:01:28.1]} 30...
h6 {[%clk 0:00:01.8]} 31. f6 {[%clk 0:01:24.7]} 1-0

[Event "*** Titled Tuesday Blitz"]
[Site "Chess.com"]
[Date "2020.10.27"]
[Round "4"]
[White "JozefKneht"]
[Black "verdest"]
[Result "1-0"]
[WhiteElo "2413"]
[BlackElo "2625"]
[TimeControl "180+1"]
[EndTime "10:37:24 PDT"]
[Termination "JozefKneht won by resignation"]

1. Nf3 {[%clk 0:03:00.9]} 1... Nf6 {[%clk 0:02:58.8]} 2. c4 {[%clk 0:03:01.4]}
2... e6 {[%clk 0:02:58.2]} 3. g3 {[%clk 0:02:59.9]} 3... d5 {[%clk 0:02:56.4]}
4. b3 {[%clk 0:03:00.4]} 4... c5 {[%clk 0:02:54.4]} 5. Bg2 {[%clk 0:02:59.8]}
5... Nc6 {[%clk 0:02:53.6]} 6. O-O {[%clk 0:02:59.4]} 6... d4 {[%clk 0:02:53.5]}
7. e3 {[%clk 0:02:59.1]} 7... Be7 {[%clk 0:02:52.6]} 8. exd4 {[%clk 0:02:58.5]}
8... cxd4 {[%clk 0:02:53.5]} 9. Re1 {[%clk 0:02:58.8]} 9... O-O {[%clk
0:02:53.1]} 10. d3 {[%clk 0:02:56.8]} 10... a5 {[%clk 0:02:45.3]} 11. a3 {[%clk
0:02:48.9]} 11... Nd7 {[%clk 0:02:41.7]} 12. Nbd2 {[%clk 0:02:43.4]} 12... Nc5
{[%clk 0:02:35.1]} 13. Ne4 {[%clk 0:02:39.2]} 13... Nxe4 {[%clk 0:02:31.4]} 14.
Rxe4 {[%clk 0:02:38.6]} 14... f5 {[%clk 0:02:23.4]} 15. Re1 {[%clk 0:02:34.1]}
15... Bd6 {[%clk 0:01:52.9]} 16. Bf4 {[%clk 0:02:33.2]} 16... Qc7 {[%clk
0:01:47.2]} 17. Bxd6 {[%clk 0:02:31.1]} 17... Qxd6 {[%clk 0:01:48.1]} 18. Qe2
{[%clk 0:02:29.2]} 18... Ra6 {[%clk 0:00:58.5]} 19. Ne5 {[%clk 0:02:26.7]} 19...
Nxe5 {[%clk 0:00:55.9]} 20. Qxe5 {[%clk 0:02:25.8]} 20... Qxe5 {[%clk
0:00:54.4]} 21. Rxe5 {[%clk 0:02:25.6]} 21... Rb6 {[%clk 0:00:54.9]} 22. Rb1
{[%clk 0:02:23.5]} 22... Bd7 {[%clk 0:00:53.6]} 23. Rxa5 {[%clk 0:02:21.8]}
23... Bc6 {[%clk 0:00:49.6]} 24. Bxc6 {[%clk 0:02:04.4]} 24... bxc6 {[%clk
0:00:50.5]} 25. b4 {[%clk 0:02:04.4]} 25... Kf7 {[%clk 0:00:48.1]} 26. a4 {[%clk
0:02:02.7]} 26... Kf6 {[%clk 0:00:47.7]} 27. b5 {[%clk 0:01:59.8]} 27... c5
{[%clk 0:00:43.4]} 28. Ra7 {[%clk 0:01:58.3]} 28... e5 {[%clk 0:00:40.3]} 29. a5
{[%clk 0:01:57.8]} 29... Rbb8 {[%clk 0:00:40.7]} 30. Rc7 {[%clk 0:01:53.1]}
30... e4 {[%clk 0:00:41]} 31. Rxc5 {[%clk 0:01:51.5]} 31... Rfe8 {[%clk
0:00:41.2]} 32. Rd5 {[%clk 0:01:49.6]} 32... exd3 {[%clk 0:00:25]} 33. Rxd4
{[%clk 0:01:48.7]} 33... Rbd8 {[%clk 0:00:25.5]} 34. Rxd8 {[%clk 0:01:45.1]}
34... Rxd8 {[%clk 0:00:26.4]} 35. a6 {[%clk 0:01:45.3]} 35... d2 {[%clk
0:00:26.3]} 36. a7 {[%clk 0:01:32]} 36... d1=Q+ {[%clk 0:00:21.5]} 37. Rxd1
{[%clk 0:01:31.3]} 37... Rxd1+ {[%clk 0:00:22.4]} 38. Kg2 {[%clk 0:01:31.5]} 1-0

[Event "*** Titled Tuesday Blitz"]
[Site "Chess.com"]
[Date "2020.10.27"]
[Round "4"]
[White "kakakz"]
[Black "manitodeplomo"]
[Result "0-1"]
[WhiteElo "2389"]
[BlackElo "2637"]
[TimeControl "180+1"]
[EndTime "10:37:24 PDT"]
[Termination "manitodeplomo won by resignation"]

1. d4 {[%clk 0:02:59.3]} 1... c5 {[%clk 0:02:58.4]} 2. d5 {[%clk 0:02:56.8]}
2... g6 {[%clk 0:02:58]} 3. Nc3 {[%clk 0:02:55]} 3... Bg7 {[%clk 0:02:58.9]} 4.
e4 {[%clk 0:02:55]} 4... d6 {[%clk 0:02:59.4]} 5. Be2 {[%clk 0:02:48.2]} 5...
Nf6 {[%clk 0:03:00.3]} 6. Nf3 {[%clk 0:02:46.4]} 6... O-O {[%clk 0:03:00.9]} 7.
O-O {[%clk 0:02:46.3]} 7... Na6 {[%clk 0:03:01.2]} 8. Nd2 {[%clk 0:02:32.5]}
8... Nc7 {[%clk 0:03:01.7]} 9. a4 {[%clk 0:02:26.5]} 9... b6 {[%clk 0:03:01.7]}
10. Nc4 {[%clk 0:01:58.6]} 10... Ba6 {[%clk 0:03:01.7]} 11. Ne3 {[%clk
0:01:52.1]} 11... Bxe2 {[%clk 0:03:00.5]} 12. Qxe2 {[%clk 0:01:53]} 12... a6
{[%clk 0:02:59.3]} 13. f4 {[%clk 0:01:44.9]} 13... e6 {[%clk 0:02:58.3]} 14.
dxe6 {[%clk 0:01:17.4]} 14... fxe6 {[%clk 0:02:59.2]} 15. Rd1 {[%clk 0:01:17]}
15... Qe7 {[%clk 0:02:53.6]} 16. Nc4 {[%clk 0:01:11.2]} 16... Nxe4 {[%clk
0:02:38.8]} 17. Nxe4 {[%clk 0:01:08.1]} 17... d5 {[%clk 0:02:38.7]} 18. Nxb6
{[%clk 0:01:07.1]} 18... Rab8 {[%clk 0:02:35.9]} 19. a5 {[%clk 0:01:06.7]} 19...
dxe4 {[%clk 0:02:35.2]} 20. Qxe4 {[%clk 0:01:07.6]} 20... Rfd8 {[%clk
0:02:25.1]} 21. Re1 {[%clk 0:00:51.4]} 21... Rd4 {[%clk 0:02:21]} 22. Qe2 {[%clk
0:00:42.3]} 22... Rbd8 {[%clk 0:02:20.6]} 23. c3 {[%clk 0:00:40.8]} 23... Rd3
{[%clk 0:02:15.6]} 24. Be3 {[%clk 0:00:40.1]} 24... c4 {[%clk 0:02:14.9]} 25.
Nxc4 {[%clk 0:00:36.3]} 25... Qd7 {[%clk 0:02:10.1]} 26. Kh1 {[%clk 0:00:25.3]}
26... Qb5 {[%clk 0:02:09.9]} 27. Nb6 {[%clk 0:00:17]} 27... Nd5 {[%clk
0:01:28.3]} 28. Nxd5 {[%clk 0:00:16.9]} 28... exd5 {[%clk 0:01:29.2]} 29. h3
{[%clk 0:00:16.6]} 29... Re8 {[%clk 0:01:28.9]} 30. Qf2 {[%clk 0:00:15.9]} 30...
Re4 {[%clk 0:01:26.9]} 31. Bd4 {[%clk 0:00:15]} 31... Bxd4 {[%clk 0:01:26.3]}
32. Rxe4 {[%clk 0:00:14.7]} 32... Bxf2 {[%clk 0:01:25.5]} 33. Re2 {[%clk
0:00:12.9]} 33... Rxh3+ {[%clk 0:01:24.8]} 0-1

[Event "*** Titled Tuesday Blitz"]
[Site "Chess.com"]
[Date "2020.10.27"]
[Round "4"]
[White "BrandonJacobson"]
[Black "Abdimalik_Abdisalimov"]
[Result "1-0"]
[WhiteElo "2952"]
[BlackElo "2751"]
[TimeControl "180+1"]
[EndTime "10:37:25 PDT"]
[Termination "BrandonJacobson won by resignation"]

1. d4 {[%clk 0:03:00.9]} 1... Nf6 {[%clk 0:02:59.4]} 2. c4 {[%clk 0:02:58.6]}
2... g6 {[%clk 0:02:59.7]} 3. Nc3 {[%clk 0:02:58.7]} 3... Bg7 {[%clk 0:03:00.2]}
4. e4 {[%clk 0:02:59]} 4... O-O {[%clk 0:03:01.1]} 5. h3 {[%clk 0:02:59.7]} 5...
d6 {[%clk 0:03:01]} 6. Be3 {[%clk 0:03:00.4]} 6... Na6 {[%clk 0:02:47.7]} 7. g4
{[%clk 0:03:00.1]} 7... c5 {[%clk 0:02:45.8]} 8. Nge2 {[%clk 0:02:59.5]} 8...
Be6 {[%clk 0:02:16.8]} 9. b3 {[%clk 0:02:51.6]} 9... b5 {[%clk 0:02:05.8]} 10.
cxb5 {[%clk 0:02:43]} 10... cxd4 {[%clk 0:02:06]} 11. Nxd4 {[%clk 0:02:42.3]}
11... Nc5 {[%clk 0:02:05.6]} 12. e5 {[%clk 0:02:30.2]} 12... Nfe4 {[%clk
0:01:16.6]} 13. Nxe4 {[%clk 0:01:38.2]} 13... Nxe4 {[%clk 0:01:13.9]} 14. Nc6
{[%clk 0:01:34.8]} 14... Qd7 {[%clk 0:00:41.1]} 15. Bg2 {[%clk 0:01:34.3]} 15...
d5 {[%clk 0:00:19.6]} 16. Rc1 {[%clk 0:01:12.7]} 16... f5 {[%clk 0:00:10.4]} 17.
exf6 {[%clk 0:01:06]} 17... Bxf6 {[%clk 0:00:10.8]} 18. Bxe4 {[%clk 0:01:02.4]}
18... dxe4 {[%clk 0:00:11.7]} 19. Qxd7 {[%clk 0:01:03.2]} 19... Bxd7 {[%clk
0:00:12.5]} 20. Ke2 {[%clk 0:01:04]} 20... Rfc8 {[%clk 0:00:04.3]} 21. Rhd1
{[%clk 0:01:03.1]} 21... a6 {[%clk 0:00:03.8]} 22. Rxd7 {[%clk 0:01:02.7]} 1-0

[Event "*** Titled Tuesday Blitz"]
[Site "Chess.com"]
[Date "2020.10.27"]
[Round "4"]
[White "YoungUzbek"]
[Black "kuli4ik"]
[Result "1-0"]
[WhiteElo "2776"]
[BlackElo "2878"]
[TimeControl "180+1"]
[EndTime "10:37:29 PDT"]
[Termination "YoungUzbek won by resignation"]

1. d4 {[%clk 0:03:00.9]} 1... e6 {[%clk 0:02:56.8]} 2. Nf3 {[%clk 0:03:00.3]}
2... Nf6 {[%clk 0:02:56.2]} 3. Bg5 {[%clk 0:02:59.9]} 3... h6 {[%clk 0:02:48.9]}
4. Bh4 {[%clk 0:02:59.6]} 4... c5 {[%clk 0:02:43.5]} 5. Nbd2 {[%clk 0:02:53.2]}
5... cxd4 {[%clk 0:02:41]} 6. Nxd4 {[%clk 0:02:51.8]} 6... Be7 {[%clk
0:02:40.4]} 7. e4 {[%clk 0:02:51.1]} 7... d6 {[%clk 0:02:36.3]} 8. Bd3 {[%clk
0:02:51.1]} 8... a6 {[%clk 0:02:35.9]} 9. O-O {[%clk 0:02:51.1]} 9... Nbd7
{[%clk 0:02:34.9]} 10. c3 {[%clk 0:02:50.9]} 10... Qc7 {[%clk 0:02:34.8]} 11. f4
{[%clk 0:02:49.7]} 11... b6 {[%clk 0:02:33.7]} 12. Qe2 {[%clk 0:02:48]} 12...
Bb7 {[%clk 0:02:32]} 13. Rae1 {[%clk 0:02:47.6]} 13... Nc5 {[%clk 0:02:08.3]}
14. Bc2 {[%clk 0:02:40.8]} 14... Rd8 {[%clk 0:02:06]} 15. e5 {[%clk 0:02:04.8]}
15... Nd5 {[%clk 0:01:57.8]} 16. Bxe7 {[%clk 0:01:57.1]} 16... Nxe7 {[%clk
0:01:54.7]} 17. f5 {[%clk 0:01:47.6]} 17... dxe5 {[%clk 0:01:51.2]} 18. fxe6
{[%clk 0:01:40.9]} 18... exd4 {[%clk 0:01:47]} 19. cxd4 {[%clk 0:01:27.2]} 19...
Nxe6 {[%clk 0:01:08.2]} 20. Rxf7 {[%clk 0:01:25.3]} 20... Bd5 {[%clk 0:00:57.7]}
21. Bg6 {[%clk 0:01:17.5]} 21... Kd7 {[%clk 0:00:50.9]} 22. Bf5 {[%clk
0:01:17.3]} 22... Qd6 {[%clk 0:00:40.6]} 23. Nc4 {[%clk 0:01:13.6]} 23... Bxc4
{[%clk 0:00:13.8]} 24. Qxc4 {[%clk 0:01:14.5]} 24... Rdf8 {[%clk 0:00:06.2]} 25.
Rxe6 {[%clk 0:01:03.2]} 25... Rxf7 {[%clk 0:00:05.9]} 26. Rxd6+ {[%clk
0:01:02.2]} 26... Kxd6 {[%clk 0:00:06.8]} 1-0

[Event "*** Titled Tuesday Blitz"]
[Site "Chess.com"]
[Date "2020.10.27"]
[Round "4"]
[White "DanielDardha2005"]
[Black "AsaHoffmann"]
[Result "1-0"]
[WhiteElo "2636"]
[BlackElo "2366"]
[TimeControl "180+1"]
[EndTime "10:37:34 PDT"]
[Termination "DanielDardha2005 won by resignation"]

1. d4 {[%clk 0:03:00.9]} 1... Nf6 {[%clk 0:02:58.1]} 2. c4 {[%clk 0:03:00.2]}
2... c5 {[%clk 0:02:57.7]} 3. d5 {[%clk 0:02:59.1]} 3... e5 {[%clk 0:02:57.4]}
4. Nc3 {[%clk 0:02:56]} 4... d6 {[%clk 0:02:52.3]} 5. g3 {[%clk 0:02:50.1]} 5...
Be7 {[%clk 0:02:51.5]} 6. Bg2 {[%clk 0:02:49.9]} 6... O-O {[%clk 0:02:51]} 7.
Nf3 {[%clk 0:02:45.4]} 7... Ne8 {[%clk 0:02:47.9]} 8. e4 {[%clk 0:02:42.7]} 8...
f5 {[%clk 0:02:47.7]} 9. exf5 {[%clk 0:02:42.7]} 9... Bxf5 {[%clk 0:02:47.3]}
10. O-O {[%clk 0:02:42.8]} 10... Nf6 {[%clk 0:02:46.2]} 11. Bg5 {[%clk
0:02:37.5]} 11... Nbd7 {[%clk 0:02:45.3]} 12. Bxf6 {[%clk 0:02:35]} 12... Nxf6
{[%clk 0:02:43.5]} 13. Ng5 {[%clk 0:02:26.9]} 13... Qd7 {[%clk 0:02:43.1]} 14.
Nge4 {[%clk 0:02:22.6]} 14... Nxe4 {[%clk 0:02:40.5]} 15. Nxe4 {[%clk
0:02:20.9]} 15... Bxe4 {[%clk 0:02:31.1]} 16. Bxe4 {[%clk 0:02:21.8]} 16... g6
{[%clk 0:02:29]} 17. Qd3 {[%clk 0:02:18.6]} 17... Kg7 {[%clk 0:02:28]} 18. Kg2
{[%clk 0:02:19]} 18... Rf6 {[%clk 0:02:26.6]} 19. h4 {[%clk 0:02:18.2]} 19...
Raf8 {[%clk 0:02:25.7]} 20. f3 {[%clk 0:02:18.8]} 20... a6 {[%clk 0:02:22.1]}
21. Rab1 {[%clk 0:02:11.2]} 21... b5 {[%clk 0:02:20.5]} 22. b4 {[%clk
0:02:11.4]} 22... Rb8 {[%clk 0:02:14.2]} 23. Qc3 {[%clk 0:01:57.2]} 23... Qc7
{[%clk 0:02:09.9]} 24. cxb5 {[%clk 0:01:48.5]} 24... axb5 {[%clk 0:02:07.6]} 25.
bxc5 {[%clk 0:01:42.7]} 25... Qxc5 {[%clk 0:02:05.9]} 26. Rfc1 {[%clk
0:01:36.9]} 26... b4 {[%clk 0:02:02.9]} 27. Qd2 {[%clk 0:01:28.7]} 27... Qa5
{[%clk 0:01:55.7]} 28. h5 {[%clk 0:01:25.1]} 28... Rf7 {[%clk 0:01:50.7]} 29.
hxg6 {[%clk 0:01:20.1]} 29... hxg6 {[%clk 0:01:50]} 30. Rh1 {[%clk 0:01:20.4]}
30... g5 {[%clk 0:01:35.4]} 31. Rh7+ {[%clk 0:01:13.8]} 31... Kf6 {[%clk
0:01:34.7]} 32. Rh6+ {[%clk 0:01:09.1]} 32... Kg7 {[%clk 0:01:33.7]} 33. Rbh1
{[%clk 0:01:09.6]} 33... Rg8 {[%clk 0:01:30.7]} 34. Qc2 {[%clk 0:00:49.8]} 34...
Qc5 {[%clk 0:01:28.7]} 35. Qa4 {[%clk 0:00:26.8]} 35... g4 {[%clk 0:01:08.9]}
36. Rg6+ {[%clk 0:00:21.9]} 1-0

[Event "*** Titled Tuesday Blitz"]
[Site "Chess.com"]
[Date "2020.10.27"]
[Round "4"]
[White "GelmanAlexander"]
[Black "Genghis_K"]
[Result "1/2-1/2"]
[WhiteElo "2579"]
[BlackElo "2855"]
[TimeControl "180+1"]
[EndTime "10:37:35 PDT"]
[Termination "Game drawn by repetition"]

1. d4 {[%clk 0:03:00.9]} 1... Nf6 {[%clk 0:02:59.8]} 2. Nc3 {[%clk 0:03:00.1]}
2... d5 {[%clk 0:02:59.8]} 3. Bf4 {[%clk 0:02:59.9]} 3... c5 {[%clk 0:02:57.6]}
4. e3 {[%clk 0:03:00]} 4... cxd4 {[%clk 0:02:52.2]} 5. exd4 {[%clk 0:03:00]}
5... a6 {[%clk 0:02:52.6]} 6. Nf3 {[%clk 0:03:00.1]} 6... Nc6 {[%clk 0:02:52]}
7. Ne5 {[%clk 0:03:00.3]} 7... Bd7 {[%clk 0:02:50.3]} 8. Be2 {[%clk 0:02:59.2]}
8... Qb6 {[%clk 0:02:50.1]} 9. Nxc6 {[%clk 0:02:57.7]} 9... Bxc6 {[%clk
0:02:46.6]} 10. Rb1 {[%clk 0:02:55.8]} 10... e6 {[%clk 0:02:40.3]} 11. O-O
{[%clk 0:02:55.6]} 11... Be7 {[%clk 0:02:36.5]} 12. Qd3 {[%clk 0:02:53]} 12...
O-O {[%clk 0:02:34.2]} 13. Rfd1 {[%clk 0:02:50.6]} 13... Rfc8 {[%clk 0:02:32.6]}
14. Qg3 {[%clk 0:02:43.4]} 14... Be8 {[%clk 0:02:18.6]} 15. Be5 {[%clk 0:02:43]}
15... g6 {[%clk 0:02:14.7]} 16. h4 {[%clk 0:02:34.3]} 16... Ne4 {[%clk
0:02:07.1]} 17. Nxe4 {[%clk 0:02:33.8]} 17... dxe4 {[%clk 0:02:07.6]} 18. c3
{[%clk 0:02:21.5]} 18... Bb5 {[%clk 0:01:59.3]} 19. Bxb5 {[%clk 0:02:16.1]}
19... Qxb5 {[%clk 0:01:54.6]} 20. h5 {[%clk 0:02:04.7]} 20... Qd5 {[%clk
0:01:30.3]} 21. b3 {[%clk 0:01:44]} 21... b5 {[%clk 0:01:27.5]} 22. hxg6 {[%clk
0:01:34]} 22... hxg6 {[%clk 0:01:23.5]} 23. Qf4 {[%clk 0:01:20.1]} 23... f6
{[%clk 0:01:10.6]} 24. Qh6 {[%clk 0:01:09.8]} 24... fxe5 {[%clk 0:01:04.8]} 25.
Qxg6+ {[%clk 0:01:09.8]} 25... Kf8 {[%clk 0:01:05.5]} 26. Qh6+ {[%clk
0:00:54.9]} 26... Kf7 {[%clk 0:00:57.7]} 27. Qh7+ {[%clk 0:00:52.8]} 27... Kf8
{[%clk 0:00:47.7]} 28. Qh6+ {[%clk 0:00:50.2]} 28... Kf7 {[%clk 0:00:48.1]} 29.
Qh7+ {[%clk 0:00:35.2]} 29... Kf8 {[%clk 0:00:47.9]} 30. Qh6+ {[%clk 0:00:20.7]}
1/2-1/2